[Event "Titled Tuesday Blitz May 16 Early 2023"]
[White "Kiseljova, Marya"]
[Black "Melikhov, Evgeny V."]
[WhiteFideId "4155009"]
[BlackFideId "4122046"]
[WhiteElo "1831"]
[BlackElo "2158"]
[Result "0-1"]
[Round "06"]
[TimeControl "180+2"]
[Date "2023.05.16"]
[WhiteClock "0:00:00"]
[BlackClock "0:00:18"]

1. d4 {[%clk 0:03:00]}  Nf6 {[%clk 0:02:59]} 2. c4 {[%clk 0:03:00]}  e6 {[%clk 0:02:59]} 3. Bf4 {[%clk 0:03:00]}  d5 {[%clk 0:02:55]} 4. cxd5 {[%clk 0:02:59]}  exd5 {[%clk 0:02:54]} 5. e3 {[%clk 0:02:57]}  Bd6 {[%clk 0:02:49]} 6. Bxd6 {[%clk 0:02:57]}  Qxd6 {[%clk 0:02:49]} 7. Nf3 {[%clk 0:02:56]}  Bg4 {[%clk 0:02:47]} 8. Be2 {[%clk 0:02:56]}  O-O {[%clk 0:02:46]} 9. O-O {[%clk 0:02:55]}  c6 {[%clk 0:02:43]} 10. Nc3 {[%clk 0:02:46]}  Nbd7 {[%clk 0:02:42]} 11. a3 {[%clk 0:02:45]}  Rfe8 {[%clk 0:02:39]} 12. h3 {[%clk 0:02:44]}  Bh5 {[%clk 0:02:28]} 13. b4 {[%clk 0:02:41]}  a6 {[%clk 0:02:26]} 14. Qb3 {[%clk 0:02:39]}  Ne4 {[%clk 0:02:24]} 15. Qb2 {[%clk 0:02:03]}  Nxc3 {[%clk 0:02:17]} 16. Qxc3 {[%clk 0:02:03]}  Nf6 {[%clk 0:02:18]} 17. Rfe1 {[%clk 0:01:49]}  Ne4 {[%clk 0:02:16]} 18. Qb2 {[%clk 0:01:47]}  f6 {[%clk 0:02:01]} 19. a4 {[%clk 0:01:45]}  Re7 {[%clk 0:01:56]} 20. b5 {[%clk 0:01:41]}  cxb5 {[%clk 0:01:56]} 21. axb5 {[%clk 0:01:41]}  a5 {[%clk 0:01:56]} 22. b6 {[%clk 0:01:40]}  a4 {[%clk 0:01:51]} 23. Ra3 {[%clk 0:01:31]}  Be8 {[%clk 0:01:47]} 24. Rea1 {[%clk 0:01:26]}  Bc6 {[%clk 0:01:36]} 25. Bd1 {[%clk 0:01:22]}  Ra6 {[%clk 0:01:34]} 26. Bxa4 {[%clk 0:01:20]}  Bxa4 {[%clk 0:01:32]} 27. Rxa4 {[%clk 0:01:20]}  Rxb6 {[%clk 0:01:32]} 28. Ra8+ {[%clk 0:01:19]}  Kf7 {[%clk 0:01:33]} 29. Qa2 {[%clk 0:01:18]}  Rc7 {[%clk 0:01:27]} 30. Qa4 {[%clk 0:01:09]}  Rbc6 {[%clk 0:01:17]} 31. Ne1 {[%clk 0:00:37]}  h5 {[%clk 0:01:12]} 32. Nd3 {[%clk 0:00:36]}  h4 {[%clk 0:01:12]} 33. Qa3 {[%clk 0:00:14]}  Qxa3 {[%clk 0:00:57]} 34. R8xa3 {[%clk 0:00:15]}  b5 {[%clk 0:00:49]} 35. Nb4 {[%clk 0:00:15]}  Rd6 {[%clk 0:00:46]} 36. Ra5 {[%clk 0:00:14]}  Rb7 {[%clk 0:00:44]} 37. Rc1 {[%clk 0:00:12]}  Nd2 {[%clk 0:00:38]} 38. Rc8 {[%clk 0:00:11]}  Nc4 {[%clk 0:00:38]} 39. Raa8 {[%clk 0:00:11]}  Kg6 {[%clk 0:00:34]} 40. Kf1 {[%clk 0:00:10]}  Rdd7 {[%clk 0:00:31]} 41. Ke2 {[%clk 0:00:10]}  Nb6 {[%clk 0:00:28]} 42. Rab8 {[%clk 0:00:03]}  Nxc8 {[%clk 0:00:26]} 43. Rxc8 {[%clk 0:00:04]}  Rbc7 {[%clk 0:00:23]} 44. Rb8 {[%clk 0:00:03]}  Rb7 {[%clk 0:00:23]} 45. Rc8 {[%clk 0:00:04]}  Kf7 {[%clk 0:00:23]} 46. Rc5 {[%clk 0:00:04]}  Ke6 {[%clk 0:00:22]} 47. Kd3 {[%clk 0:00:00]}  Rdc7 {[%clk 0:00:18]} 0-1


[Site "https://www.chess.com"]

[Event "Titled Tuesday Blitz May 16 Early 2023"]
[White "ritanovikova"]
[Black "Barbot, Pierre"]
[BlackFideId "663727"]
[WhiteElo "2119"]
[BlackElo "2431"]
[Result "1-0"]
[Round "06"]
[TimeControl "180+2"]
[Date "2023.05.16"]
[WhiteClock "0:00:30"]
[BlackClock "0:00:00"]

1. e4 {[%clk 0:03:00]}  c6 {[%clk 0:02:53]} 2. d4 {[%clk 0:03:00]}  d5 {[%clk 0:02:53]} 3. Nd2 {[%clk 0:03:00]}  dxe4 {[%clk 0:02:53]} 4. Nxe4 {[%clk 0:03:01]}  Nf6 {[%clk 0:02:53]} 5. Nxf6+ {[%clk 0:03:02]}  exf6 {[%clk 0:02:54]} 6. Nf3 {[%clk 0:03:02]}  Bd6 {[%clk 0:02:53]} 7. h3 {[%clk 0:03:01]}  O-O {[%clk 0:02:52]} 8. Be3 {[%clk 0:03:01]}  Bf5 {[%clk 0:02:45]} 9. Bd3 {[%clk 0:03:01]}  Qd7 {[%clk 0:02:36]} 10. Bxf5 {[%clk 0:02:56]}  Qxf5 {[%clk 0:02:37]} 11. Qd2 {[%clk 0:02:56]}  Nd7 {[%clk 0:02:34]} 12. O-O {[%clk 0:02:50]}  b5 {[%clk 0:02:19]} 13. a4 {[%clk 0:02:46]}  a6 {[%clk 0:01:52]} 14. axb5 {[%clk 0:02:24]}  axb5 {[%clk 0:01:53]} 15. c3 {[%clk 0:02:21]}  Nb6 {[%clk 0:01:47]} 16. b3 {[%clk 0:02:14]}  Nd5 {[%clk 0:01:42]} 17. c4 {[%clk 0:02:12]}  Bb4 {[%clk 0:01:33]} 18. Qc1 {[%clk 0:01:53]}  Nc3 {[%clk 0:01:24]} 19. Qb2 {[%clk 0:01:41]}  Rab8 {[%clk 0:01:11]} 20. c5 {[%clk 0:01:27]}  Nd5 {[%clk 0:00:48]} 21. Bd2 {[%clk 0:01:26]}  Bxd2 {[%clk 0:00:47]} 22. Qxd2 {[%clk 0:01:27]}  Nf4 {[%clk 0:00:42]} 23. Kh1 {[%clk 0:01:22]}  Nxh3 {[%clk 0:00:34]} 24. Nh4 {[%clk 0:01:06]}  Qg4 {[%clk 0:00:22]} 25. g3 {[%clk 0:00:44]}  Ng5 {[%clk 0:00:17]} 26. Qf4 {[%clk 0:00:40]}  Qxf4 {[%clk 0:00:14]} 27. gxf4 {[%clk 0:00:40]}  Ne6 {[%clk 0:00:14]} 28. Nf5 {[%clk 0:00:37]}  Rfe8 {[%clk 0:00:07]} 29. Nd6 {[%clk 0:00:34]}  Red8 {[%clk 0:00:02]} 30. Rfd1 {[%clk 0:00:30]}  Nxf4 {[%clk 0:00:01]} 31. Ra6 {[%clk 0:00:31]}  Nd5 {[%clk 0:00:00]} 32. Rxc6 {[%clk 0:00:30]} 1-0


[Site "https://www.chess.com"]

[Event "Titled Tuesday Blitz May 16 Early 2023"]
[White "Allahverdiyeva, Ayan"]
[Black "Necula, Iulian"]
[WhiteFideId "13412590"]
[BlackFideId "1232380"]
[WhiteElo "1980"]
[BlackElo "1790"]
[Result "1-0"]
[Round "06"]
[TimeControl "180+2"]
[Date "2023.05.16"]
[WhiteClock "0:00:25"]
[BlackClock "0:00:10"]

1. e4 {[%clk 0:03:00]}  d6 {[%clk 0:03:00]} 2. d4 {[%clk 0:02:59]}  Nf6 {[%clk 0:03:01]} 3. Nc3 {[%clk 0:02:58]}  Nbd7 {[%clk 0:03:02]} 4. f4 {[%clk 0:02:58]}  e5 {[%clk 0:03:02]} 5. Nf3 {[%clk 0:02:56]}  exd4 {[%clk 0:03:02]} 6. Qxd4 {[%clk 0:02:56]}  c6 {[%clk 0:03:02]} 7. Be3 {[%clk 0:02:55]}  d5 {[%clk 0:03:00]} 8. O-O-O {[%clk 0:02:55]}  Bc5 {[%clk 0:02:59]} 9. Qd2 {[%clk 0:02:54]}  Bxe3 {[%clk 0:02:54]} 10. Qxe3 {[%clk 0:02:54]}  O-O {[%clk 0:02:54]} 11. exd5 {[%clk 0:02:49]}  Re8 {[%clk 0:02:44]} 12. Qd2 {[%clk 0:02:48]}  Qa5 {[%clk 0:02:29]} 13. d6 {[%clk 0:02:36]}  b5 {[%clk 0:02:13]} 14. Kb1 {[%clk 0:02:33]}  b4 {[%clk 0:02:11]} 15. Ne2 {[%clk 0:02:25]}  Ne4 {[%clk 0:02:10]} 16. Qd4 {[%clk 0:02:25]}  c5 {[%clk 0:02:02]} 17. Qd5 {[%clk 0:02:06]}  Nc3+ {[%clk 0:01:55]} 18. bxc3 {[%clk 0:02:00]}  bxc3 {[%clk 0:01:56]} 19. Ka1 {[%clk 0:01:42]}  Rb8 {[%clk 0:01:42]} 20. Ng5 {[%clk 0:01:39]}  Rf8 {[%clk 0:01:24]} 21. Qc4 {[%clk 0:01:04]}  Rb2 {[%clk 0:00:31]} 22. Nxc3 {[%clk 0:01:02]}  Rxc2 {[%clk 0:00:30]} 23. Nge4 {[%clk 0:00:50]}  Nb6 {[%clk 0:00:23]} 24. Qb5 {[%clk 0:00:45]}  Qa3 {[%clk 0:00:21]} 25. Qb3 {[%clk 0:00:41]}  Rc1+ {[%clk 0:00:20]} 26. Rxc1 {[%clk 0:00:41]}  Qxc1+ {[%clk 0:00:20]} 27. Qb1 {[%clk 0:00:42]}  Qxf4 {[%clk 0:00:19]} 28. Bb5 {[%clk 0:00:39]}  Nc4 {[%clk 0:00:18]} 29. Bxc4 {[%clk 0:00:36]}  Bf5 {[%clk 0:00:18]} 30. Rf1 {[%clk 0:00:35]}  Qe3 {[%clk 0:00:16]} 31. Rxf5 {[%clk 0:00:34]}  Qd4 {[%clk 0:00:16]} 32. Bxf7+ {[%clk 0:00:26]}  Rxf7 {[%clk 0:00:10]} 33. Qb8+ {[%clk 0:00:25]} 1-0


[Site "https://www.chess.com"]

[Event "Titled Tuesday Blitz May 16 Early 2023"]
[White "Manon-og, Ramon Jr."]
[Black "Kriti Mayur Patel"]
[WhiteFideId "5200776"]
[BlackFideId "35061780"]
[WhiteElo "2309"]
[BlackElo "1306"]
[Result "1-0"]
[Round "06"]
[TimeControl "180+2"]
[Date "2023.05.16"]
[WhiteClock "0:01:40"]
[BlackClock "0:00:14"]

1. e4 {[%clk 0:03:00]}  e5 {[%clk 0:02:59]} 2. Nf3 {[%clk 0:03:01]}  Nc6 {[%clk 0:02:57]} 3. Bc4 {[%clk 0:03:01]}  Nf6 {[%clk 0:02:55]} 4. Ng5 {[%clk 0:03:01]}  d5 {[%clk 0:02:54]} 5. exd5 {[%clk 0:03:02]}  Na5 {[%clk 0:02:55]} 6. Bb5+ {[%clk 0:03:02]}  c6 {[%clk 0:02:56]} 7. dxc6 {[%clk 0:03:03]}  bxc6 {[%clk 0:02:56]} 8. Bd3 {[%clk 0:03:04]}  Nd5 {[%clk 0:02:56]} 9. Nf3 {[%clk 0:03:03]}  Qc7 {[%clk 0:02:44]} 10. O-O {[%clk 0:03:03]}  Nf4 {[%clk 0:02:43]} 11. Nxe5 {[%clk 0:02:57]}  Be6 {[%clk 0:02:22]} 12. Re1 {[%clk 0:02:54]}  Bd6 {[%clk 0:02:16]} 13. Nc4 {[%clk 0:02:53]}  Nxd3 {[%clk 0:01:50]} 14. Nxd6+ {[%clk 0:02:53]}  Qxd6 {[%clk 0:01:48]} 15. cxd3 {[%clk 0:02:54]}  Qxd3 {[%clk 0:01:48]} 16. Qe2 {[%clk 0:02:54]}  Qg6 {[%clk 0:01:44]} 17. b3 {[%clk 0:02:49]}  O-O {[%clk 0:01:44]} 18. Bb2 {[%clk 0:02:49]}  Bh3 {[%clk 0:01:37]} 19. g3 {[%clk 0:02:42]}  Rad8 {[%clk 0:01:33]} 20. Nc3 {[%clk 0:02:40]}  Nb7 {[%clk 0:01:27]} 21. Ne4 {[%clk 0:02:34]}  Rfe8 {[%clk 0:01:21]} 22. Qc4 {[%clk 0:02:34]}  Qh5 {[%clk 0:01:07]} 23. Qxc6 {[%clk 0:02:29]}  Na5 {[%clk 0:00:46]} 24. Nf6+ {[%clk 0:02:27]}  gxf6 {[%clk 0:00:42]} 25. Rxe8+ {[%clk 0:02:27]}  Rxe8 {[%clk 0:00:33]} 26. Qxe8+ {[%clk 0:02:28]}  Kg7 {[%clk 0:00:34]} 27. Qe3 {[%clk 0:02:12]}  Qd5 {[%clk 0:00:26]} 28. f3 {[%clk 0:02:09]}  Nc6 {[%clk 0:00:25]} 29. Rc1 {[%clk 0:02:04]}  Nb4 {[%clk 0:00:24]} 30. Rc5 {[%clk 0:02:03]}  Qd6 {[%clk 0:00:17]} 31. Qg5+ {[%clk 0:01:58]}  Kf8 {[%clk 0:00:14]} 32. Bxf6 {[%clk 0:01:51]}  Nd3 {[%clk 0:00:14]} 33. Qg7+ {[%clk 0:01:41]}  Ke8 {[%clk 0:00:13]} 34. Qg8+ {[%clk 0:01:42]}  Kd7 {[%clk 0:00:14]} 35. Qc8# {[%clk 0:01:40]} 1-0


[Site "https://www.chess.com"]

[Event "Titled Tuesday Blitz May 16 Early 2023"]
[White "Weber, Samuel"]
[Black "stratacticos"]
[WhiteFideId "12924008"]
[WhiteElo "2162"]
[BlackElo "1881"]
[Result "1/2-1/2"]
[Round "06"]
[TimeControl "180+2"]
[Date "2023.05.16"]
[WhiteClock "0:00:25"]
[BlackClock "0:00:02"]

1. b3 {[%clk 0:03:00]}  e5 {[%clk 0:02:58]} 2. Bb2 {[%clk 0:03:00]}  d6 {[%clk 0:02:58]} 3. c4 {[%clk 0:03:01]}  Nf6 {[%clk 0:02:54]} 4. Nc3 {[%clk 0:02:47]}  c6 {[%clk 0:02:53]} 5. e3 {[%clk 0:02:47]}  Be7 {[%clk 0:02:51]} 6. Nf3 {[%clk 0:02:47]}  O-O {[%clk 0:02:51]} 7. Bd3 {[%clk 0:02:48]}  a6 {[%clk 0:02:44]} 8. O-O {[%clk 0:02:48]}  b5 {[%clk 0:02:43]} 9. cxb5 {[%clk 0:02:47]}  axb5 {[%clk 0:02:43]} 10. a4 {[%clk 0:02:45]}  b4 {[%clk 0:02:42]} 11. Na2 {[%clk 0:02:46]}  e4 {[%clk 0:02:41]} 12. Bxf6 {[%clk 0:02:44]}  Bxf6 {[%clk 0:02:40]} 13. Bxe4 {[%clk 0:02:45]}  Bxa1 {[%clk 0:02:39]} 14. Qxa1 {[%clk 0:02:46]}  Qe7 {[%clk 0:02:15]} 15. Bb1 {[%clk 0:02:42]}  Bg4 {[%clk 0:02:00]} 16. Qd4 {[%clk 0:02:33]}  Bxf3 {[%clk 0:01:59]} 17. gxf3 {[%clk 0:02:33]}  c5 {[%clk 0:01:57]} 18. Qd5 {[%clk 0:02:24]}  Nd7 {[%clk 0:01:55]} 19. Bd3 {[%clk 0:02:10]}  Qe6 {[%clk 0:01:46]} 20. Qh5 {[%clk 0:01:59]}  Nf6 {[%clk 0:01:41]} 21. Qh4 {[%clk 0:01:55]}  Qxb3 {[%clk 0:01:39]} 22. Nc1 {[%clk 0:01:55]}  Qe6 {[%clk 0:01:33]} 23. Ne2 {[%clk 0:01:51]}  Rxa4 {[%clk 0:01:29]} 24. Nf4 {[%clk 0:01:51]}  Qe5 {[%clk 0:01:25]} 25. h3 {[%clk 0:01:39]}  g5 {[%clk 0:01:20]} 26. Qg3 {[%clk 0:01:29]}  Kh8 {[%clk 0:01:19]} 27. Ne2 {[%clk 0:01:17]}  Qxg3+ {[%clk 0:01:19]} 28. Nxg3 {[%clk 0:01:18]}  b3 {[%clk 0:01:11]} 29. Nf5 {[%clk 0:01:13]}  d5 {[%clk 0:01:06]} 30. e4 {[%clk 0:01:11]}  c4 {[%clk 0:01:04]} 31. Bb1 {[%clk 0:01:09]}  dxe4 {[%clk 0:01:03]} 32. fxe4 {[%clk 0:01:09]}  Ra1 {[%clk 0:00:58]} 33. Nd6 {[%clk 0:01:08]}  Kg7 {[%clk 0:00:55]} 34. Nxc4 {[%clk 0:01:08]}  Rd8 {[%clk 0:00:48]} 35. d3 {[%clk 0:01:08]}  Rxb1 {[%clk 0:00:45]} 36. Rxb1 {[%clk 0:01:08]}  Rxd3 {[%clk 0:00:43]} 37. e5 {[%clk 0:00:55]}  Nh5 {[%clk 0:00:38]} 38. Ne3 {[%clk 0:00:56]}  Nf4 {[%clk 0:00:37]} 39. Kh2 {[%clk 0:00:56]}  Kg6 {[%clk 0:00:22]} 40. Rb2 {[%clk 0:00:31]}  h5 {[%clk 0:00:20]} 41. Rb1 {[%clk 0:00:25]}  Rc3 {[%clk 0:00:19]} 42. Rd1 {[%clk 0:00:23]}  b2 {[%clk 0:00:17]} 43. Rd6+ {[%clk 0:00:24]}  Kh7 {[%clk 0:00:14]} 44. Rb6 {[%clk 0:00:23]}  Nd3 {[%clk 0:00:09]} 45. Rb7 {[%clk 0:00:22]}  Kg6 {[%clk 0:00:08]} 46. Rb6+ {[%clk 0:00:22]}  Kh7 {[%clk 0:00:07]} 47. Rb7 {[%clk 0:00:21]}  Nxe5 {[%clk 0:00:07]} 48. Rxb2 {[%clk 0:00:20]}  Nd3 {[%clk 0:00:05]} 49. Rb8 {[%clk 0:00:20]}  Nxf2 {[%clk 0:00:04]} 50. Nd5 {[%clk 0:00:20]}  Rc2 {[%clk 0:00:04]} 51. Rb7 {[%clk 0:00:21]}  Kg6 {[%clk 0:00:03]} 52. Rb6+ {[%clk 0:00:20]}  Kf5 {[%clk 0:00:03]} 53. Rf6+ {[%clk 0:00:20]}  Ke5 {[%clk 0:00:03]} 54. Ne3 {[%clk 0:00:19]}  Re2 {[%clk 0:00:01]} 55. Nc4+ {[%clk 0:00:18]}  Kxf6 {[%clk 0:00:01]} 56. Kg3 {[%clk 0:00:19]}  Ne4+ {[%clk 0:00:01]} 57. Kf3 {[%clk 0:00:19]}  Nc5 {[%clk 0:00:02]} 58. Kxe2 {[%clk 0:00:20]}  Kf5 {[%clk 0:00:01]} 59. Kf3 {[%clk 0:00:20]}  g4+ {[%clk 0:00:02]} 60. Kg3 {[%clk 0:00:21]}  gxh3 {[%clk 0:00:01]} 61. Kxh3 {[%clk 0:00:22]}  Ne4 {[%clk 0:00:01]} 62. Nd2 {[%clk 0:00:23]}  Kg5 {[%clk 0:00:02]} 63. Nf3+ {[%clk 0:00:24]}  Kf4 {[%clk 0:00:02]} 64. Nh2 {[%clk 0:00:25]}  Ng5+ {[%clk 0:00:01]} 65. Kh4 {[%clk 0:00:24]}  f5 {[%clk 0:00:02]} 66. Kxh5 {[%clk 0:00:24]}  Nf3 {[%clk 0:00:03]} 67. Nf1 {[%clk 0:00:25]}  Ke4 {[%clk 0:00:02]} 68. Ng3+ {[%clk 0:00:25]}  Ke3 {[%clk 0:00:02]} 69. Nxf5+ {[%clk 0:00:25]} 1/2-1/2


[Site "https://www.chess.com"]

[Event "Titled Tuesday Blitz May 16 Early 2023"]
[White "Jiganchine, Roman"]
[Black "Cramling Bellon, Anna"]
[WhiteFideId "2603667"]
[BlackFideId "32009232"]
[WhiteElo "2247"]
[BlackElo "1976"]
[Result "1-0"]
[Round "06"]
[TimeControl "180+2"]
[Date "2023.05.16"]
[WhiteClock "0:00:11"]
[BlackClock "0:00:00"]

1. e4 {[%clk 0:02:35]}  c5 {[%clk 0:02:59]} 2. Nf3 {[%clk 0:02:34]}  e6 {[%clk 0:02:58]} 3. g3 {[%clk 0:02:30]}  d5 {[%clk 0:02:57]} 4. exd5 {[%clk 0:02:28]}  exd5 {[%clk 0:02:58]} 5. d4 {[%clk 0:02:28]}  Nc6 {[%clk 0:02:57]} 6. Bg2 {[%clk 0:02:28]}  Nf6 {[%clk 0:02:57]} 7. O-O {[%clk 0:02:27]}  cxd4 {[%clk 0:02:57]} 8. Nxd4 {[%clk 0:02:24]}  Be7 {[%clk 0:02:56]} 9. Nc3 {[%clk 0:02:20]}  O-O {[%clk 0:02:55]} 10. Bg5 {[%clk 0:02:16]}  Be6 {[%clk 0:02:53]} 11. Re1 {[%clk 0:02:12]}  Bc5 {[%clk 0:02:30]} 12. Rxe6 {[%clk 0:01:32]}  fxe6 {[%clk 0:01:32]} 13. Nxe6 {[%clk 0:01:31]}  Qb6 {[%clk 0:00:58]} 14. Nxf8 {[%clk 0:01:27]}  Bxf2+ {[%clk 0:00:56]} 15. Kh1 {[%clk 0:01:27]}  Rxf8 {[%clk 0:00:55]} 16. Nxd5 {[%clk 0:01:26]}  Qxb2 {[%clk 0:00:24]} 17. Nxf6+ {[%clk 0:01:16]}  gxf6 {[%clk 0:00:24]} 18. Bh6 {[%clk 0:01:11]}  Ne5 {[%clk 0:00:03]} 19. Rb1 {[%clk 0:01:02]}  Qc3 {[%clk 0:00:03]} 20. Bxf8 {[%clk 0:00:52]}  Kxf8 {[%clk 0:00:04]} 21. Qd8+ {[%clk 0:00:50]}  Kf7 {[%clk 0:00:02]} 22. Rxb7+ {[%clk 0:00:49]}  Kg6 {[%clk 0:00:02]} 23. Qe8+ {[%clk 0:00:38]}  Kf5 {[%clk 0:00:01]} 24. Qh5+ {[%clk 0:00:24]}  Ke6 {[%clk 0:00:02]} 25. Bh3+ {[%clk 0:00:19]}  Kd6 {[%clk 0:00:02]} 26. Qd1+ {[%clk 0:00:18]}  Bd4 {[%clk 0:00:02]} 27. Bg2 {[%clk 0:00:14]}  Qe3 {[%clk 0:00:01]} 28. Rb3 {[%clk 0:00:13]}  Qf2 {[%clk 0:00:00]} 29. Qf1 {[%clk 0:00:11]} 1-0


[Site "https://www.chess.com"]

[Event "Titled Tuesday Blitz May 16 Early 2023"]
[White "Goswami, Vedant"]
[Black "Floresvillar Gonzalez, Luis Migu"]
[WhiteFideId "5003725"]
[BlackFideId "5100542"]
[WhiteElo "2011"]
[BlackElo "2040"]
[Result "1-0"]
[Round "06"]
[TimeControl "180+2"]
[Date "2023.05.16"]
[WhiteClock "0:00:49"]
[BlackClock "0:00:13"]

1. b3 {[%clk 0:03:00]}  e5 {[%clk 0:02:57]} 2. Bb2 {[%clk 0:03:00]}  d6 {[%clk 0:02:57]} 3. e3 {[%clk 0:03:00]}  c5 {[%clk 0:02:57]} 4. d4 {[%clk 0:02:56]}  cxd4 {[%clk 0:02:56]} 5. exd4 {[%clk 0:02:56]}  Nc6 {[%clk 0:02:55]} 6. dxe5 {[%clk 0:02:51]}  dxe5 {[%clk 0:02:50]} 7. Qxd8+ {[%clk 0:02:49]}  Kxd8 {[%clk 0:02:50]} 8. Nd2 {[%clk 0:02:43]}  Kc7 {[%clk 0:02:44]} 9. O-O-O {[%clk 0:02:40]}  Bf5 {[%clk 0:02:23]} 10. Ngf3 {[%clk 0:02:35]}  f6 {[%clk 0:02:20]} 11. Nc4 {[%clk 0:02:27]}  Nh6 {[%clk 0:02:03]} 12. Ne3 {[%clk 0:02:26]}  Be6 {[%clk 0:01:54]} 13. Nd5+ {[%clk 0:02:22]}  Kc8 {[%clk 0:01:43]} 14. Bb5 {[%clk 0:02:11]}  Bc5 {[%clk 0:01:40]} 15. Ne3 {[%clk 0:01:52]}  Rd8 {[%clk 0:01:37]} 16. Rxd8+ {[%clk 0:01:40]}  Kxd8 {[%clk 0:01:36]} 17. Bxc6 {[%clk 0:01:37]}  bxc6 {[%clk 0:01:34]} 18. Rd1+ {[%clk 0:01:37]}  Kc7 {[%clk 0:01:34]} 19. Nd2 {[%clk 0:01:31]}  Rd8 {[%clk 0:01:26]} 20. Ne4 {[%clk 0:01:29]}  Rxd1+ {[%clk 0:01:23]} 21. Kxd1 {[%clk 0:01:29]}  Bb6 {[%clk 0:01:15]} 22. Ba3 {[%clk 0:01:29]}  Nf5 {[%clk 0:01:11]} 23. Nxf5 {[%clk 0:01:15]}  Bxf5 {[%clk 0:01:09]} 24. f3 {[%clk 0:01:14]}  h5 {[%clk 0:00:51]} 25. Bf8 {[%clk 0:01:11]}  Bxe4 {[%clk 0:00:38]} 26. fxe4 {[%clk 0:01:09]}  g6 {[%clk 0:00:38]} 27. Bg7 {[%clk 0:01:08]}  f5 {[%clk 0:00:34]} 28. exf5 {[%clk 0:01:07]}  gxf5 {[%clk 0:00:33]} 29. Bxe5+ {[%clk 0:01:07]}  Kd7 {[%clk 0:00:33]} 30. Ke2 {[%clk 0:01:05]}  Ke6 {[%clk 0:00:34]} 31. Bf4 {[%clk 0:01:04]}  Kd5 {[%clk 0:00:33]} 32. Kd3 {[%clk 0:01:00]}  a6 {[%clk 0:00:27]} 33. c4+ {[%clk 0:00:59]}  Ke6 {[%clk 0:00:26]} 34. b4 {[%clk 0:00:57]}  Bd8 {[%clk 0:00:21]} 35. a4 {[%clk 0:00:57]}  Be7 {[%clk 0:00:19]} 36. b5 {[%clk 0:00:55]}  cxb5 {[%clk 0:00:20]} 37. cxb5 {[%clk 0:00:54]}  axb5 {[%clk 0:00:20]} 38. axb5 {[%clk 0:00:53]}  Kd5 {[%clk 0:00:21]} 39. b6 {[%clk 0:00:53]}  Kc6 {[%clk 0:00:20]} 40. Bc7 {[%clk 0:00:53]}  Bd6 {[%clk 0:00:15]} 41. Bxd6 {[%clk 0:00:51]}  Kxd6 {[%clk 0:00:15]} 42. Kd4 {[%clk 0:00:52]}  h4 {[%clk 0:00:10]} 43. h3 {[%clk 0:00:50]}  Kc6 {[%clk 0:00:08]} 44. Ke5 {[%clk 0:00:49]}  Kxb6 {[%clk 0:00:09]} 45. Kxf5 {[%clk 0:00:50]}  Kc6 {[%clk 0:00:09]} 46. Kg4 {[%clk 0:00:50]}  Kd5 {[%clk 0:00:10]} 47. Kxh4 {[%clk 0:00:51]}  Ke6 {[%clk 0:00:10]} 48. Kg5 {[%clk 0:00:52]}  Kf7 {[%clk 0:00:11]} 49. h4 {[%clk 0:00:51]}  Kg8 {[%clk 0:00:11]} 50. Kg6 {[%clk 0:00:50]}  Kh8 {[%clk 0:00:11]} 51. g4 {[%clk 0:00:50]}  Kg8 {[%clk 0:00:11]} 52. g5 {[%clk 0:00:51]}  Kh8 {[%clk 0:00:12]} 53. h5 {[%clk 0:00:51]}  Kg8 {[%clk 0:00:13]} 54. h6 {[%clk 0:00:51]}  Kh8 {[%clk 0:00:13]} 55. Kf7 {[%clk 0:00:51]}  Kh7 {[%clk 0:00:13]} 56. g6+ {[%clk 0:00:52]}  Kxh6 {[%clk 0:00:13]} 57. g7 {[%clk 0:00:53]}  Kg5 {[%clk 0:00:13]} 58. g8=Q+ {[%clk 0:00:52]}  Kf5 {[%clk 0:00:13]} 59. Qg6+ {[%clk 0:00:52]}  Ke5 {[%clk 0:00:13]} 60. Qf6+ {[%clk 0:00:51]}  Ke4 {[%clk 0:00:13]} 61. Ke6 {[%clk 0:00:51]}  Kd3 {[%clk 0:00:14]} 62. Qe5 {[%clk 0:00:51]}  Kc4 {[%clk 0:00:14]} 63. Qd6 {[%clk 0:00:49]}  Kb5 {[%clk 0:00:15]} 64. Qc7 {[%clk 0:00:49]}  Kb4 {[%clk 0:00:14]} 65. Qc6 {[%clk 0:00:49]}  Kb3 {[%clk 0:00:15]} 66. Qc5 {[%clk 0:00:49]}  Kb2 {[%clk 0:00:16]} 67. Qc4 {[%clk 0:00:49]}  Kb1 {[%clk 0:00:17]} 68. Qe2 {[%clk 0:00:49]}  Kc1 {[%clk 0:00:13]} 69. Kd5 {[%clk 0:00:49]} 1-0


[Site "https://www.chess.com"]

[Event "Titled Tuesday Blitz May 16 Early 2023"]
[White "Zaksaite, Salomeja"]
[Black "Srebrnic, Ana"]
[WhiteFideId "12801496"]
[BlackFideId "14603314"]
[WhiteElo "2059"]
[BlackElo "2181"]
[Result "1-0"]
[Round "06"]
[TimeControl "180+2"]
[Date "2023.05.16"]
[WhiteClock "0:00:31"]
[BlackClock "0:00:44"]

1. e4 {[%clk 0:02:54]}  c5 {[%clk 0:02:58]} 2. Nf3 {[%clk 0:02:52]}  e6 {[%clk 0:02:58]} 3. g3 {[%clk 0:02:51]}  d5 {[%clk 0:02:56]} 4. exd5 {[%clk 0:02:46]}  exd5 {[%clk 0:02:55]} 5. d4 {[%clk 0:02:30]}  cxd4 {[%clk 0:02:49]} 6. Nxd4 {[%clk 0:02:29]}  Nc6 {[%clk 0:02:47]} 7. Bb5 {[%clk 0:02:27]}  Bd7 {[%clk 0:02:35]} 8. O-O {[%clk 0:02:26]}  Nf6 {[%clk 0:02:34]} 9. Re1+ {[%clk 0:02:25]}  Be7 {[%clk 0:02:34]} 10. Nc3 {[%clk 0:02:20]}  O-O {[%clk 0:02:32]} 11. Bg5 {[%clk 0:02:15]}  h6 {[%clk 0:02:26]} 12. Rxe7 {[%clk 0:01:58]}  Qxe7 {[%clk 0:02:03]} 13. Nxd5 {[%clk 0:01:54]}  Qe5 {[%clk 0:01:47]} 14. Nxf6+ {[%clk 0:01:07]}  gxf6 {[%clk 0:01:44]} 15. Nxc6 {[%clk 0:01:06]}  Bxc6 {[%clk 0:01:41]} 16. Bxh6 {[%clk 0:01:05]}  Kh7 {[%clk 0:01:14]} 17. Bxf8 {[%clk 0:00:35]}  Bxb5 {[%clk 0:00:57]} 18. Bd6 {[%clk 0:00:32]}  Qh5 {[%clk 0:00:44]} 19. Qxh5+ {[%clk 0:00:31]} 1-0


[Site "https://www.chess.com"]